[Event "12th Maria Albulet Memorial 2019"]
[Site "Braila"]
[Date "2019.10.05"]
[Round "5.5"]
[White "Cosman, Andreea-Marioara"]
[Black "Didiliuc, Dariana-Gabriela"]
[Result "1-0"]
[ECO "A58"]
[WhiteElo "2165"]
[BlackElo "1798"]
[Annotator "ChessBase"]
[PlyCount "107"]
[EventDate "2019.10.02"]
[EventType "swiss"]
[EventCountry "ROU"]
[SourceTitle "playchess.com"]
[Source "ChessBase"]
[SourceQuality "1"]
[TimeControl "40/5400+30:900+30"]

1. d4 {[%emt 0:00:00]} Nf6 {[%emt 0:00:00]} 2. c4 {[%emt 0:00:00]} c5 {[%emt 0:00:00]} 3. d5 {[%emt 0:00:00]} b5 {[%emt 0:00:03]} 4. cxb5 {[%emt 0:00:00]} a6 {[%emt 0:00:12]} 5. bxa6 {[%emt 0:00:05]} g6 {[%emt 0:00:52]} 6. Nc3 {[%emt 0:00:48]} Bg7 {[%emt 0:00:39]} 7. e4 {[%emt 0:00:15]} O-O {[%emt 0:00:51]} 8. Be2 {[%emt 0:06:36]} Qa5 {[%emt 0:00:49]} 9. Bd2 {[%emt 0:00:08]} Bxa6 {[%emt 0:00:52]} 10. Nf3 {[%emt 0:04:12]} Bxe2 {[%emt 0:11:01]} 11. Qxe2 {[%emt 0:00:17]} Qa6 {[%emt 0:00:12]} 12. b3 {[%emt 0:13:43]} e6 {[%emt 0:05:33]} 13. dxe6 {[%emt 0:06:16]} dxe6 {[%emt 0:00:59]} 14. Qxa6 {[%emt 0:04:16]} Rxa6 {[%emt 0:02:14]} 15. Rc1 {[%emt 0:02:56]} Nbd7 {[%emt 0:02:50]} 16. O-O {[%emt 0:05:32]} Rb8 {[%emt 0:01:19]} 17. h3 {[%emt 0:17:25]} Nb6 {[%emt 0:04:41]} 18. Rfd1 {[%emt 0:07:19]} c4 {[%emt 0:06:19]} 19. Bf4 {[%emt 0:05:09]} Rc8 {[%emt 0:01:36]} 20. bxc4 {[%emt 0:09:56]} Nxc4 {[%emt 0:05:34]} 21. Nb5 {[%emt 0:02:30]} Bf8 {[%emt 0:01:30]} 22. Rd4 {[%emt 0:00:30]} Nb6 {[%emt 0:00:06]} 23. Rxc8 {[%emt 0:01:57]} Nxc8 {[%emt 0:00:30]} 24. Rd8 {[%emt 0:00:24]} Nb6 {[%emt 0:00:11]} 25. Ne5 {[%emt 0:06:54]} Ra8 {[%emt 0:00:19]} 26. Rxa8 {[%emt 0:01:02]} Nxa8 {[%emt 0:00:04]} 27. f3 {[%emt 0:00:17]} Nb6 {[%emt 0:01:16]} 28. Kf2 {[%emt 0:01:13]} Na4 {[%emt 0:01:00]} 29. Ke2 {[%emt 0:01:39]} Nh5 {[%emt 0:00:37]} 30. Be3 {[%emt 0:00:43]} Ng3+ {[%emt 0:00:58]} 31. Kd3 {[%emt 0:00:59]} f5 {[%emt 0:02:40]} 32. exf5 {[%emt 0:01:48]} Nxf5 {[%emt 0:00:13]} 33. Bf2 {[%emt 0:00:36]} Kg7 {[%emt 0:01:35]} 34. Nd7 {[%emt 0:00:47]} Be7 {[%emt 0:00:27]} 35. Kc2 {[%emt 0:00:18]} Bh4 {[%emt 0:01:27]} 36. Bg1 {[%emt 0:00:44]} Be1 {[%emt 0:00:19]} 37. Kb3 {[%emt 0:00:18]} Nh4 {[%emt 0:00:13]} 38. Kxa4 {[%emt 0:00:36]} Nxg2 {[%emt 0:00:04]} 39. Bd4+ {[%emt 0:00:40]} Kf7 {[%emt 0:00:13]} 40. Ne5+ {[%emt 0:00:00]} Ke7 {[%emt 0:00:00]} 41. Nd3 {[%emt 0:05:38]} Bd2 {[%emt 0:00:38]} 42. Bf2 {[%emt 0:01:00]} g5 {[%emt 0:00:28]} 43. Kb3 {[%emt 0:00:55]} Kf6 {[%emt 0:00:13]} 44. Nc3 {[%emt 0:02:51]} Nf4 {[%emt 0:00:36]} 45. Ne4+ {[%emt 0:01:15]} Kf5 {[%emt 0:00:08]} 46. Nd6+ {[%emt 0:02:42]} Kg6 {[%emt 0:00:17]} 47. Nxf4+ {[%emt 0:00:32]} Bxf4 {[%emt 0:00:07]} 48. Bc5 {[%emt 0:01:26]} Kh5 {[%emt 0:00:14]} 49. a4 {[%emt 0:01:22]} Bd2 {[%emt 0:00:05]} 50. Bf2 {[%emt 0:00:38]} Bf4 {[%emt 0:00:26]} 51. Nb5 {[%emt 0:00:42]} Kg6 {[%emt 0:00:23]} 52. a5 {[%emt 0:00:25]} h5 {[%emt 0:00:05]} 53. a6 {[%emt 0:00:14]} Bb8 {[%emt 0:00:06]} 54. Bg3 {[%emt 0:00:16]} 1-0

[Event "12th Maria Albulet Memorial 2019"]
[Site "Braila"]
[Date "2019.10.05"]
[Round "5.6"]
[White "Makropoulou, Marina"]
[Black "Anghel, Maria"]
[Result "1-0"]
[ECO "B42"]
[WhiteElo "2201"]
[BlackElo "1743"]
[Annotator "ChessBase"]
[PlyCount "67"]
[EventDate "2019.10.02"]
[EventType "swiss"]
[EventCountry "ROU"]
[SourceTitle "playchess.com"]
[Source "ChessBase"]
[SourceQuality "1"]
[TimeControl "40/5400+30:900+30"]

1. e4 {[%emt 0:00:00]} c5 {[%emt 0:00:00]} 2. Nf3 {[%emt 0:00:00]} e6 3. d4 {[%emt 0:00:15]} cxd4 {[%emt 0:00:14]} 4. Nxd4 {[%emt 0:00:05]} a6 {[%emt 0:00:13]} 5. Bd3 {[%emt 0:00:33]} Nf6 6. O-O {[%emt 0:01:39]} d6 {[%emt 0:00:57]} 7. c4 {[%emt 0:01:32]} g6 {[%emt 0:00:49]} 8. Nc3 {[%emt 0:01:23]} Bg7 {[%emt 0:00:27]} 9. Bg5 {[%emt 0:02:15]} Qc7 {[%emt 0:03:38]} 10. Rc1 {[%emt 0:09:09]} O-O {[%emt 0:01:13]} 11. Qd2 Re8 12. Bh6 {[%emt 0:05:45]} Bh8 {[%emt 0:14:50]} 13. Be2 {[%emt 0:02:26]} Nc6 {[%emt 0:15:31]} 14. Nxc6 {[%emt 0:10:23]} bxc6 {[%emt 0:04:09]} 15. Rfd1 {[%emt 0:01:18]} Rd8 {[%emt 0:13:44]} 16. e5 {[%emt 0:04:31]} Ne8 {[%emt 0:04:10]} 17. Bf4 {[%emt 0:00:48]} d5 {[%emt 0:06:15]} 18. Qe3 {[%emt 0:07:38]} Qb7 {[%emt 0:04:54]} 19. b3 {[%emt 0:01:46]} Bd7 {[%emt 0:01:45]} 20. Na4 {[%emt 0:03:26]} Rab8 {[%emt 0:02:24]} 21. Nc5 {[%emt 0:02:01]} Qb6 {[%emt 0:04:21]} 22. cxd5 {[%emt 0:05:41]} cxd5 {[%emt 0:01:27]} 23. Nxa6 {[%emt 0:10:34]} Qxe3 {[%emt 0:03:17]} 24. Bxe3 {[%emt 0:00:32]} Ra8 {[%emt 0:00:58]} 25. f4 {[%emt 0:00:27]} Bc8 {[%emt 0:03:30]} 26. Nb4 {[%emt 0:00:38]} Bb7 {[%emt 0:00:28]} 27. a4 {[%emt 0:00:20]} h5 {[%emt 0:02:04]} 28. Bb6 {[%emt 0:03:05]} Rdc8 {[%emt 0:00:53]} 29. a5 {[%emt 0:00:30]} Rxc1 {[%emt 0:01:27]} 30. Rxc1 {[%emt 0:00:03]} Rb8 {[%emt 0:01:22]} 31. Nc6 {[%emt 0:04:04]} Ra8 {[%emt 0:02:26]} 32. b4 {[%emt 0:10:22]} Bg7 {[%emt 0:01:08]} 33. Nd8 {[%emt 0:03:53]} Bc8 {[%emt 0:00:50]} 34. Bb5 {[%emt 0:00:07]} 1-0

[Event "12th Maria Albulet Memorial 2019"]
[Site "Braila"]
[Date "2019.10.05"]
[Round "5.7"]
[White "Paraschiv, Petronela-Alexandra"]
[Black "Mihailova, Alina"]
[Result "0-1"]
[ECO "C68"]
[WhiteElo "1829"]
[BlackElo "1770"]
[Annotator "NA"]
[PlyCount "56"]
[EventDate "2019.10.02"]
[EventType "swiss"]
[EventCountry "ROU"]
[SourceTitle "playchess.com"]
[Source "ChessBase"]
[SourceQuality "1"]
[TimeControl "40/5400+30:900+30"]

1. e4 {[%emt 0:00:00]} e5 {[%emt 0:00:00]} 2. Nf3 {[%emt 0:00:00]} Nc6 {[%emt 0:00:00]} 3. Bb5 {[%emt 0:00:00]} a6 {[%emt 0:00:00]} 4. Bxc6 {[%emt 0:00:24]} dxc6 {[%emt 0:00:00]} 5. O-O {[%emt 0:00:46]} Bg4 {[%emt 0:00:15]} 6. h3 {[%emt 0:00:44]} h5 {[%emt 0:00:31]} 7. d3 {[%emt 0:00:49]} Qf6 {[%emt 0:00:37]} 8. Nbd2 {[%emt 0:00:51]} Ne7 {[%emt 0:00:37]} 9. Re1 {[%emt 0:01:23]} Ng6 {[%emt 0:04:08]} 10. d4 {[%emt 0:02:28]} Bxf3 {[%emt 0:06:51]} 11. Nxf3 {[%emt 0:01:20]} Bd6 {[%emt 0:05:49]} 12. c3 {[%emt 0:03:11]} Qe7 {[%emt 0:01:57]} 13. dxe5 {[%emt 0:04:37]} Bxe5 {[%emt 0:01:27]} 14. Nxe5 {[%emt 0:00:34]} Nxe5 {[%emt 0:00:47]} 15. Qc2 {[%emt 0:09:58]} O-O-O {[%emt 0:01:07]} 16. Be3 {[%emt 0:02:07]} g5 {[%emt 0:02:24]} 17. Rad1 {[%emt 0:04:25]} Rdg8 {[%emt 0:00:28]} 18. Bd4 {[%emt 0:06:22]} g4 {[%emt 0:01:53]} 19. hxg4 {[%emt 0:06:36]} Rxg4 {[%emt 0:08:35]} 20. Bxe5 {[%emt 0:12:31]} Qxe5 {[%emt 0:01:16]} 21. Re2 {[%emt 0:04:29]} Rhg8 {[%emt 0:00:24]} 22. f3 {[%emt 0:00:49]} Rg3 {[%emt 0:00:09]} 23. Kf1 {[%emt 0:01:01]} h4 {[%emt 0:02:45]} 24. Qd3 {[%emt 0:05:40]} h3 {[%emt 0:07:42]} 25. gxh3 {[%emt 0:02:51]} Rg1+ {[%emt 0:00:25]} 26. Kf2 {[%emt 0:00:07]} R8g2+ {[%emt 0:00:25]} 27. Ke3 {[%emt 0:00:17]} Qg5+ {[%emt 0:00:20]} 28. Kd4 {[%emt 0:01:01]} c5+ {[%emt 0:00:09]} 0-1

[Event "12th Maria Albulet Memorial 2019"]
[Site "Braila"]
[Date "2019.10.05"]
[Round "5.8"]
[White "Maria, Lia-Alexandra"]
[Black "Pitigoi, Sabina-Andreea"]
[Result "1-0"]
[ECO "C17"]
[WhiteElo "1602"]
[BlackElo "1490"]
[Annotator "NA"]
[PlyCount "65"]
[EventDate "2019.10.02"]
[EventType "swiss"]
[EventCountry "ROU"]
[SourceTitle "playchess.com"]
[Source "ChessBase"]
[SourceQuality "1"]
[TimeControl "40/5400+30:900+30"]

1. e4 {[%emt 0:00:00]} e6 {[%emt 0:00:00]} 2. d4 {[%emt 0:00:00]} d5 {[%emt 0:00:00]} 3. Nc3 {[%emt 0:00:00]} Bb4 {[%emt 0:00:02]} 4. e5 {[%emt 0:00:12]} c5 {[%emt 0:00:31]} 5. Bd2 {[%emt 0:04:28]} a6 {[%emt 0:03:27]} 6. a3 {[%emt 0:08:44]} cxd4 {[%emt 0:04:24]} 7. axb4 {[%emt 0:02:19]} dxc3 {[%emt 0:00:06]} 8. Bxc3 {[%emt 0:00:29]} b5 {[%emt 0:01:12]} 9. Bxb5+ {[%emt 0:04:59]} Bd7 {[%emt 0:02:41]} 10. Be2 {[%emt 0:09:40]} Qb6 {[%emt 0:05:19]} 11. Nf3 {[%emt 0:03:41]} Ne7 {[%emt 0:04:01]} 12. O-O {[%emt 0:03:46]} O-O {[%emt 0:01:08]} 13. Bd3 {[%emt 0:08:58]} h6 {[%emt 0:04:58]} 14. Bd2 {[%emt 0:10:00]} Nbc6 {[%emt 0:07:15]} 15. c3 {[%emt 0:02:23]} d4 {[%emt 0:08:23]} 16. Qc1 {[%emt 0:07:59]} h5 {[%emt 0:28:45]} 17. Re1 {[%emt 0:05:06]} dxc3 {[%emt 0:02:38]} 18. bxc3 {[%emt 0:00:52]} Rfc8 {[%emt 0:03:06]} 19. Be3 {[%emt 0:02:24]} Qb7 {[%emt 0:08:37]} 20. Bc5 {[%emt 0:02:22]} Be8 {[%emt 0:04:08]} 21. Qg5 {[%emt 0:02:59]} g6 {[%emt 0:01:41]} 22. Qh6 {[%emt 0:01:27]} Nd8 {[%emt 0:06:43]} 23. Ng5 {[%emt 0:02:18]} Rxc5 {[%emt 0:00:29]} 24. Qh7+ {[%emt 0:01:37]} Kf8 {[%emt 0:00:08]} 25. Qh8+ {[%emt 0:01:59]} Ng8 {[%emt 0:00:07]} 26. bxc5 {[%emt 0:00:04]} Bc6 {[%emt 0:01:50]} 27. Nh7+ {[%emt 0:04:47]} Ke7 {[%emt 0:00:10]} 28. Qxg8 {[%emt 0:00:30]} Bxg2 {[%emt 0:01:12]} 29. Qf8+ {[%emt 0:00:09]} Kd7 {[%emt 0:00:06]} 30. Nf6+ {[%emt 0:00:18]} Kc8 {[%emt 0:00:29]} 31. Be4 {[%emt 0:00:16]} Bxe4 {[%emt 0:00:12]} 32. Nxe4 {[%emt 0:00:11]} Kc7 {[%emt 0:01:10]} 33. Qe7+ {[%emt 0:00:08]} 1-0

[Event "12th Maria Albulet Memorial 2019"]
[Site "Braila"]
[Date "2019.10.06"]
[Round "6.1"]
[White "Cosma, Elena-Luminita"]
[Black "Rakhmangulova, Anastasiya"]
[Result "1/2-1/2"]
[ECO "D02"]
[WhiteElo "2313"]
[BlackElo "2186"]
[Annotator "ChessBase"]
[PlyCount "49"]
[EventDate "2019.10.02"]
[EventType "swiss"]
[EventCountry "ROU"]
[SourceTitle "playchess.com"]
[Source "ChessBase"]
[SourceQuality "1"]
[TimeControl "40/5400+30:900+30"]

1. d4 {[%emt 0:00:00]} d5 {[%emt 0:00:00]} 2. Nf3 {[%emt 0:00:01]} Nf6 {[%emt 0:00:00]} 3. c4 {[%emt 0:00:11]} c6 {[%emt 0:00:01]} 4. Qc2 {[%emt 0:00:05]} dxc4 {[%emt 0:03:07]} 5. Qxc4 {[%emt 0:00:08]} Bf5 {[%emt 0:10:57]} 6. e3 {[%emt 0:00:41]} e6 {[%emt 0:02:12]} 7. Nbd2 {[%emt 0:00:06]} Nbd7 {[%emt 0:08:24]} 8. Bd3 {[%emt 0:04:47]} Bxd3 {[%emt 0:13:32]} 9. Qxd3 {[%emt 0:00:04]} Be7 {[%emt 0:00:43]} 10. O-O {[%emt 0:00:53]} O-O {[%emt 0:00:04]} 11. b3 {[%emt 0:00:53]} a5 {[%emt 0:10:48]} 12. a3 {[%emt 0:07:41]} c5 {[%emt 0:12:50]} 13. Bb2 {[%emt 0:07:21]} a4 {[%emt 0:00:42]} 14. Rfc1 {[%emt 0:07:56]} cxd4 {[%emt 0:08:02]} 15. Qxd4 {[%emt 0:07:53]} e5 {[%emt 0:03:43]} 16. Qc3 {[%emt 0:14:46]} axb3 {[%emt 0:07:37]} 17. Nxb3 {[%emt 0:01:23]} Qb6 {[%emt 0:00:11]} 18. Nfd2 {[%emt 0:03:45]} Qa6 {[%emt 0:02:51]} 19. h3 {[%emt 0:06:03]} Nd5 {[%emt 0:01:38]} 20. Qc4 {[%emt 0:14:50]} Qxc4 {[%emt 0:07:54]} 21. Nxc4 {[%emt 0:00:06]} f6 {[%emt 0:01:40]} 22. Rd1 {[%emt 0:01:21]} N7b6 {[%emt 0:01:11]} 23. Nca5 {[%emt 0:02:27]} Ra7 {[%emt 0:00:33]} 24. Rac1 {[%emt 0:02:34]} Rfa8 {[%emt 0:00:26]} 25. e4 {[%emt 0:10:09]} 1/2-1/2

[Event "12th Maria Albulet Memorial 2019"]
[Site "Braila"]
[Date "2019.10.06"]
[Round "6.2"]
[White "Lehaci, Miruna-Daria"]
[Black "Navrotescu, Andreea-Cristiana"]
[Result "1/2-1/2"]
[ECO "B48"]
[WhiteElo "2131"]
[BlackElo "2241"]
[Annotator "ChessBase"]
[PlyCount "177"]
[EventDate "2019.10.02"]
[EventType "swiss"]
[EventCountry "ROU"]
[SourceTitle "playchess.com"]
[Source "ChessBase"]
[SourceQuality "1"]
[TimeControl "40/5400+30:900+30"]

1. e4 {[%emt 0:00:00]} c5 {[%emt 0:00:16]} 2. Nf3 {[%emt 0:00:00]} e6 {[%emt 0:00:06]} 3. d4 {[%emt 0:00:00]} cxd4 {[%emt 0:00:04]} 4. Nxd4 {[%emt 0:00:00]} Nc6 {[%emt 0:00:05]} 5. Nc3 {[%emt 0:00:00]} Qc7 {[%emt 0:00:08]} 6. Be3 {[%emt 0:00:00]} a6 {[%emt 0:00:09]} 7. Qf3 {[%emt 0:00:00]} Bd6 {[%emt 0:00:16]} 8. O-O-O {[%emt 0:04:01]} Be5 {[%emt 0:00:11]} 9. g3 {[%emt 0:12:45]} Nge7 {[%emt 0:01:09]} 10. Qe2 {[%emt 0:03:58]} O-O {[%emt 0:01:04]} 11. f4 {[%emt 0:01:05]} Bxd4 {[%emt 0:00:22]} 12. Bxd4 {[%emt 0:00:23]} Nxd4 {[%emt 0:00:10]} 13. Rxd4 {[%emt 0:00:05]} b5 {[%emt 0:03:33]} 14. e5 {[%emt 0:06:04]} Rb8 {[%emt 0:03:21]} 15. Ne4 {[%emt 0:03:17]} Bb7 {[%emt 0:09:24]} 16. Bg2 {[%emt 0:02:12]} Bd5 {[%emt 0:18:35]} 17. Kb1 {[%emt 0:04:10]} Qa5 {[%emt 0:06:20]} 18. b3 {[%emt 0:01:47]} Nc6 {[%emt 0:01:25]} 19. Rd2 {[%emt 0:06:12]} Rfc8 {[%emt 0:11:26]} 20. Rc1 {[%emt 0:08:48]} Rc7 {[%emt 0:10:51]} 21. c3 {[%emt 0:12:25]} Ne7 {[%emt 0:09:17]} 22. Kb2 {[%emt 0:01:52]} Bxe4 {[%emt 0:08:10]} 23. Bxe4 {[%emt 0:00:19]} Nc8 {[%emt 0:01:51]} 24. h4 {[%emt 0:04:04]} Qb6 {[%emt 0:02:00]} 25. h5 {[%emt 0:01:20]} Qc5 {[%emt 0:00:22]} 26. Bb1 {[%emt 0:02:01]} Nb6 {[%emt 0:04:19]} 27. Qe4 {[%emt 0:00:54]} g6 {[%emt 0:00:33]} 28. hxg6 {[%emt 0:00:55]} fxg6 {[%emt 0:03:06]} 29. Rh2 {[%emt 0:00:49]} d5 {[%emt 0:00:26]} 30. exd6 {[%emt 0:00:16]} Qxd6 {[%emt 0:00:02]} 31. Rch1 {[%emt 0:04:03]} Qd5 {[%emt 0:04:28]} 32. Qxd5 {[%emt 0:04:29]} Nxd5 {[%emt 0:00:11]} 33. Bxg6 {[%emt 0:00:07]} Rxc3 {[%emt 0:00:25]} 34. Bxh7+ {[%emt 0:01:15]} Kf7 {[%emt 0:01:09]} 35. g4 {[%emt 0:02:24]} Rg3 {[%emt 0:00:26]} 36. f5 {[%emt 0:02:22]} Rxg4 {[%emt 0:01:07]} 37. fxe6+ {[%emt 0:00:35]} Kxe6 {[%emt 0:00:36]} 38. Re1+ {[%emt 0:01:02]} Kf6 {[%emt 0:00:43]} 39. Rd2 {[%emt 0:04:04]} Nf4 40. Rd6+ {[%emt 0:00:00]} Kg5 {[%emt 0:00:00]} 41. Rxa6 {[%emt 0:08:24]} Rg2+ {[%emt 0:02:48]} 42. Kb1 {[%emt 0:00:18]} b4 {[%emt 0:02:23]} 43. Be4 {[%emt 0:01:29]} Rg3 {[%emt 0:01:10]} 44. Ra5+ {[%emt 0:01:14]} Kg4 {[%emt 0:00:15]} 45. Ra7 {[%emt 0:01:25]} Nh3 {[%emt 0:02:51]} 46. Rf1 {[%emt 0:02:29]} Rb5 {[%emt 0:01:09]} 47. Bc6 {[%emt 0:02:06]} Rb6 {[%emt 0:00:26]} 48. Rg7+ {[%emt 0:02:31]} Kh4 {[%emt 0:00:52]} 49. Rh7+ {[%emt 0:00:12]} Kg5 {[%emt 0:00:04]} 50. Bd7 {[%emt 0:00:45]} Nf4 {[%emt 0:00:54]} 51. Rh8 {[%emt 0:03:08]} Rd6 {[%emt 0:05:07]} 52. Rg8+ {[%emt 0:00:35]} Rg6 {[%emt 0:01:02]} 53. Rxg6+ {[%emt 0:00:45]} Nxg6 {[%emt 0:00:01]} 54. Rf5+ {[%emt 0:00:07]} Kh6 {[%emt 0:00:12]} 55. Rb5 {[%emt 0:00:40]} Rg1+ {[%emt 0:00:22]} 56. Kc2 {[%emt 0:01:25]} Rg2+ {[%emt 0:00:11]} 57. Kd3 {[%emt 0:00:22]} Rxa2 {[%emt 0:00:17]} 58. Kc4 {[%emt 0:01:11]} Kg7 {[%emt 0:01:36]} 59. Rf5 {[%emt 0:02:03]} Ne7 {[%emt 0:00:51]} 60. Rf1 {[%emt 0:00:30]} Ra7 {[%emt 0:01:17]} 61. Be8 {[%emt 0:00:32]} Rc7+ {[%emt 0:01:08]} 62. Kxb4 {[%emt 0:00:38]} Nd5+ {[%emt 0:00:07]} 63. Ka3 {[%emt 0:01:05]} Ra7+ {[%emt 0:00:38]} 64. Kb2 {[%emt 0:00:29]} Re7 {[%emt 0:00:11]} 65. Bb5 {[%emt 0:00:36]} Nf6 {[%emt 0:01:26]} 66. Bc4 {[%emt 0:00:41]} Rb7 {[%emt 0:00:37]} 67. Kc3 {[%emt 0:00:42]} Rb6 {[%emt 0:00:20]} 68. Re1 {[%emt 0:00:22]} Kf8 {[%emt 0:00:31]} 69. b4 {[%emt 0:00:10]} Ne8 {[%emt 0:00:37]} 70. b5 {[%emt 0:00:34]} Nd6 {[%emt 0:00:14]} 71. Kb4 {[%emt 0:00:13]} Nxb5 {[%emt 0:00:35]} 72. Bxb5 {[%emt 0:00:07]} Kf7 {[%emt 0:00:19]} 73. Kc5 {[%emt 0:00:06]} Rf6 {[%emt 0:00:05]} 74. Bc4+ {[%emt 0:00:10]} Kg6 {[%emt 0:00:07]} 75. Rg1+ {[%emt 0:00:33]} Kf5 {[%emt 0:00:08]} 76. Kd5 {[%emt 0:00:15]} Kf4 {[%emt 0:00:26]} 77. Rf1+ {[%emt 0:01:04]} Kg5 {[%emt 0:00:01]} 78. Rg1+ {[%emt 0:00:16]} Kf4 {[%emt 0:00:01]} 79. Kd4 {[%emt 0:00:05]} Rf5 {[%emt 0:00:38]} 80. Bd5 {[%emt 0:00:34]} Rf6 {[%emt 0:00:12]} 81. Re1 {[%emt 0:01:56]} Kf5 {[%emt 0:00:36]} 82. Re5+ {[%emt 0:00:50]} Kf4 {[%emt 0:00:06]} 83. Re8 {[%emt 0:00:36]} Kf5 {[%emt 0:00:30]} 84. Bc4 {[%emt 0:00:31]} Kf4 {[%emt 0:00:12]} 85. Re4+ {[%emt 0:00:15]} Kg5 {[%emt 0:00:16]} 86. Ke3 {[%emt 0:00:09]} Kf5 {[%emt 0:00:48]} 87. Bd3 {[%emt 0:00:07]} Re6 {[%emt 0:00:28]} 88. Rxe6+ {[%emt 0:00:14]} Kxe6 {[%emt 0:00:02]} 89. Ke4 {Ke5+} 1/2-1/2

[Event "12th Maria Albulet Memorial 2019"]
[Site "Braila"]
[Date "2019.10.06"]
[Round "6.3"]
[White "Doluhanova, Evgeniya"]
[Black "Petrenko, Svetlana"]
[Result "1-0"]
[ECO "B92"]
[WhiteElo "2285"]
[BlackElo "2112"]
[Annotator "NA"]
[PlyCount "79"]
[EventDate "2019.10.02"]
[EventType "swiss"]
[EventCountry "ROU"]
[SourceTitle "playchess.com"]
[Source "ChessBase"]
[SourceQuality "1"]
[TimeControl "40/5400+30:900+30"]

1. e4 {[%emt 0:00:00]} c5 {[%emt 0:00:00]} 2. Nf3 {[%emt 0:00:00]} d6 {[%emt 0:00:00]} 3. d4 {[%emt 0:00:14]} cxd4 {[%emt 0:00:00]} 4. Nxd4 {[%emt 0:00:03]} Nf6 {[%emt 0:00:04]} 5. Nc3 {[%emt 0:00:02]} a6 {[%emt 0:00:04]} 6. Be2 {[%emt 0:00:40]} e5 {[%emt 0:01:06]} 7. Nb3 {[%emt 0:00:40]} Be7 {[%emt 0:00:12]} 8. Be3 {[%emt 0:00:34]} Nbd7 {[%emt 0:01:14]} 9. Qd3 {[%emt 0:03:16]} O-O {[%emt 0:04:40]} 10. Rd1 {[%emt 0:09:14]} ({Better is} 10. g4 $14) 10... Qc7 {[%emt 0:09:22]} 11. a4 {[%emt 0:03:35]} b6 {[%emt 0:01:26]} 12. O-O {[%emt 0:04:42]} Bb7 {[%emt 0:02:55]} 13. Nd2 {[%emt 0:07:25]} Rac8 {[%emt 0:12:27]} 14. Nc4 {[%emt 0:03:47]} Nc5 $14 {[%emt 0:07:34]} 15. Bxc5 {[%emt 0:06:39]} dxc5 {[%emt 0:00:44]} 16. Qf3 {[%emt 0:09:20]} Rcd8 {[%emt 0:05:29]} 17. Qf5 {[%emt 0:02:12]} g6 {[%emt 0:21:15]} 18. Qxe5 {[%emt 0:03:00]} Qxe5 {[%emt 0:00:02]} 19. Nxe5 {[%emt 0:00:08]} Nxe4 {[%emt 0:00:09]} 20. Nd7 {[%emt 0:28:55]} Rfe8 {[%emt 0:05:15]} 21. Bc4 {[%emt 0:14:10]} Kg7 {[%emt 0:09:24]} 22. Nxb6 {[%emt 0:00:58]} Nxc3 {[%emt 0:10:41]} 23. bxc3 {[%emt 0:00:07]} Be4 {[%emt 0:03:09]} 24. Bd3 {[%emt 0:01:33]} Bf6 {[%emt 0:00:42]} 25. c4 {[%emt 0:00:36]} a5 {[%emt 0:01:18]} 26. Bxe4 {[%emt 0:00:10]} Rxd1 {[%emt 0:00:06]} 27. Rxd1 {[%emt 0:00:03]} Rxe4 {[%emt 0:00:03]} 28. Kf1 {[%emt 0:00:19]} Bc3 {[%emt 0:00:56]} 29. g3 {[%emt 0:00:47]} h5 {[%emt 0:00:52]} 30. f3 {[%emt 0:00:11]} Re6 {[%emt 0:01:04]} 31. Nd5 {[%emt 0:00:04]} Bd4 {[%emt 0:01:01]} 32. Rb1 {[%emt 0:00:25]} g5 {[%emt 0:00:44]} 33. Rb5 {[%emt 0:00:41]} h4 {[%emt 0:00:24]} 34. c3 {[%emt 0:01:39]} Be5 {[%emt 0:01:30]} 35. f4 {[%emt 0:00:00]} Bd6 36. Rb6 {[%emt 0:00:02]} hxg3 {[%emt 0:00:56]} 37. hxg3 {[%emt 0:00:03]} gxf4 {[%emt 0:00:13]} 38. gxf4 {[%emt 0:02:02]} Rh6 {[%emt 0:00:36]} 39. Ne3 {[%emt 0:00:00]} Rf6 40. Rxd6 1-0

[Event "12th Maria Albulet Memorial 2019"]
[Site "Braila"]
[Date "2019.10.06"]
[Round "6.4"]
[White "Makropoulou, Marina"]
[Black "Cosman, Andreea-Marioara"]
[Result "1/2-1/2"]
[ECO "B90"]
[WhiteElo "2201"]
[BlackElo "2165"]
[Annotator "ChessBase"]
[PlyCount "35"]
[EventDate "2019.10.02"]
[EventType "swiss"]
[EventCountry "ROU"]
[SourceTitle "playchess.com"]
[Source "ChessBase"]
[SourceQuality "1"]
[TimeControl "40/5400+30:900+30"]

1. e4 {[%emt 0:00:00]} c5 {[%emt 0:00:00]} 2. Nf3 {[%emt 0:00:00]} d6 {[%emt 0:00:00]} 3. d4 {[%emt 0:00:08]} cxd4 {[%emt 0:00:00]} 4. Nxd4 {[%emt 0:00:03]} Nf6 {[%emt 0:00:03]} 5. Nc3 {[%emt 0:00:04]} a6 {[%emt 0:00:05]} 6. h3 {[%emt 0:01:03]} g6 {[%emt 0:00:10]} 7. g4 {[%emt 0:03:19]} Nc6 {[%emt 0:02:22]} 8. Be3 {[%emt 0:00:48]} Bg7 {[%emt 0:00:56]} 9. Bg2 {[%emt 0:01:14]} Bd7 {[%emt 0:03:05]} 10. Qd2 {[%emt 0:04:29]} Rc8 {[%emt 0:03:54]} 11. O-O {[%emt 0:20:35]} O-O {[%emt 0:15:56]} 12. Nxc6 {[%emt 0:06:30]} Bxc6 {[%emt 0:03:26]} 13. Rad1 {[%emt 0:03:18]} Qc7 {[%emt 0:05:54]} 14. Bh6 {[%emt 0:09:43]} Bxh6 {[%emt 0:06:45]} 15. Qxh6 {[%emt 0:00:02]} b5 {[%emt 0:00:12]} 16. Rd2 {[%emt 0:02:42]} Rfe8 {[%emt 0:13:24]} 17. a3 {[%emt 0:02:42]} a5 {[%emt 0:05:10]} 18. Re1 {[%emt 0:04:32]} 1/2-1/2